fUSD/lending_fUSD_20260526
["ID","MTS","AMOUNT","RATE_DAILY","PERIOD"]
[423009152,1779745867000,-300.0,0.00021142,2]
[423009167,1779745867000,-230.0,0.00021476,2]
[423009169,1779745867000,-1476.41,0.000215,2]
[423009172,1779745867000,-340.80979391,0.00021748,2]
[423009175,1779745867000,-194.72792766,0.00021748,2]
[423009173,1779745867000,-200.0,0.00021748,2]
[423009181,1779745867000,-151.0,0.00021918,2]
[423009177,1779745867000,-7541.78,0.00021796,2]
[423009174,1779745867000,-1934.38338736,0.00021748,2]
[423009176,1779745867000,-1328.27659266,0.00021748,2]
[423009182,1779745867000,-151.0,0.00021918,2]
[423009179,1779745867000,-5060.94477576,0.00021817,2]
[423009180,1779745867000,-500.0,0.000219,2]
[423009125,1779745867000,-927.27566594,0.00020819,2]
[423009168,1779745867000,-168.0,0.00021476,2]
[423009154,1779745867000,-300.0,0.00021142,2]
[423009178,1779745867000,-5000.0,0.00021817,2]
[423009162,1779745867000,-200.0,0.000212,2]
[423009155,1779745867000,-262.0,0.00021142,2]
[423009128,1779745867000,-997.16350561,0.00020929,2]
[423009126,1779745867000,-961.58486558,0.00020874,2]
[423009132,1779745867000,-1231.21967178,0.00021,7]
[423009134,1779745867000,-270.0,0.00021,5]
[423009135,1779745867000,-238.51520748,0.00021,2]
[423009131,1779745867000,-1000.0,0.00021,21]
[423009130,1779745867000,-393.57,0.00021,10]
[423009133,1779745867000,-160.0,0.00021,7]
[423009136,1779745867000,-154.0,0.00021,2]
[423009137,1779745867000,-452.0,0.00021,2]
[423009138,1779745867000,-1497.0,0.00021,2]
[423009140,1779745867000,-357.0,0.00021,2]
[423009129,1779745867000,-2500.0,0.00021,2]
[423009139,1779745867000,-208.0,0.00021,2]
[423009161,1779745867000,-1280.88388877,0.000212,2]
[423009151,1779745867000,-300.0,0.00021142,2]
[423009150,1779745867000,-300.0,0.00021142,2]
[423009141,1779745867000,-1789.0,0.00021,2]
[423009143,1779745867000,-2067.0,0.00021,2]
[423009142,1779745867000,-164.0,0.00021,2]
[423009146,1779745867000,-300.0,0.00021142,2]
[423009148,1779745867000,-300.0,0.00021142,2]
[423009147,1779745867000,-300.0,0.00021142,2]
[423009145,1779745867000,-157.0,0.00021,2]
[423009149,1779745867000,-300.0,0.00021142,2]
[423009144,1779745867000,-544.0,0.00021,2]
[423009228,1779745868000,-2258.0,0.00022291,2]
[423009221,1779745868000,-2067.0,0.00022,2]
[423009213,1779745868000,-450.0,0.00022,2]
[423009216,1779745868000,-1497.0,0.00022,2]
[423009217,1779745868000,-208.0,0.00022,2]
[423009212,1779745868000,-660.00021438,0.00022,2]
[423009220,1779745868000,-164.0,0.00022,2]
[423009215,1779745868000,-452.0,0.00022,2]
[423009218,1779745868000,-357.0,0.00022,2]
[423009210,1779745868000,-2500.0,0.00022,2]
[423009211,1779745868000,-210506.71013387,0.00022,4]
[423009229,1779745868000,-200.0,0.00022296,2]
[423009225,1779745868000,-5000.0,0.00022037,2]
[423009231,1779745868000,-2005.9555727,0.00022296,2]
[423009233,1779745868000,-1377.42282658,0.00022296,2]
[423009224,1779745868000,-204.58446656,0.00022,3]
[423009226,1779745868000,-224.35,0.00022222,5]
[423009232,1779745868000,-201.93286098,0.00022296,2]
[423009222,1779745868000,-544.0,0.00022,2]
[423009223,1779745868000,-157.0,0.00022,2]
[423009227,1779745868000,-421.89,0.0002229,2]
[423009235,1779745868000,-175.0,0.00022425,2]
[423009245,1779745868000,-203.0,0.00022509,2]
[423009214,1779745868000,-154.0,0.00022,2]
[423009247,1779745868000,-150.0,0.00022544,2]
[423009230,1779745868000,-200.0,0.00022296,2]
[423009208,1779745868000,-9520.0,0.00022,10]
[423009197,1779745868000,-900.0,0.00021918,2]
[423009209,1779745868000,-1000.0,0.00022,2]
[423009246,1779745868000,-150.0,0.00022544,2]
[423009183,1779745868000,-151.0,0.00021918,2]
[423009185,1779745868000,-151.0,0.00021918,2]
[423009188,1779745868000,-151.0,0.00021918,2]
[423009187,1779745868000,-152.058201,0.00021918,2]
[423009186,1779745868000,-151.0,0.00021918,2]
[423009192,1779745868000,-329.6,0.00021918,2]
[423009190,1779745868000,-151.613615,0.00021918,2]
[423009191,1779745868000,-5000.0,0.00021918,2]
[423009189,1779745868000,-151.0,0.00021918,2]
[423009184,1779745868000,-151.0,0.00021918,2]
[423009194,1779745868000,-900.0,0.00021918,2]
[423009193,1779745868000,-900.0,0.00021918,2]
[423009195,1779745868000,-900.0,0.00021918,2]
[423009196,1779745868000,-900.0,0.00021918,2]
[423009198,1779745868000,-900.0,0.00021918,2]
[423009199,1779745868000,-900.0,0.00021918,2]
[423009206,1779745868000,-10000.0,0.00022,10]
[423009205,1779745868000,-10000.0,0.00022,10]
[423009200,1779745868000,-900.0,0.00021918,2]
[423009203,1779745868000,-900.0,0.00022,10]
[423009202,1779745868000,-151.16750234,0.00021999,10]
[423009201,1779745868000,-300.0,0.00021918,2]
[423009207,1779745868000,-10000.0,0.00022,10]
[423009204,1779745868000,-5309.1,0.00022,10]
[423009219,1779745868000,-1789.0,0.00022,2]
[423009243,1779745868000,-150.0,0.00022509,2]
[423009240,1779745868000,-150.0,0.00022509,2]
[423009284,1779745868000,-1789.0,0.00023,2]
[423009267,1779745868000,-209.40437684,0.00022844,2]
[423009269,1779745868000,-150.0,0.00022913,2]
[423009270,1779745868000,-152.9,0.00023,20]
[423009275,1779745868000,-251.0,0.00023,20]
[423009277,1779745868000,-2500.0,0.00023,20]
[423009278,1779745868000,-230.5,0.00023,20]
[423009281,1779745868000,-1497.0,0.00023,2]
[423009282,1779745868000,-208.0,0.00023,2]
[423009276,1779745868000,-1027.63657384,0.00023,2]
[423009279,1779745868000,-154.0,0.00023,2]
[423009280,1779745868000,-452.0,0.00023,2]
[423009283,1779745868000,-357.0,0.00023,2]
[423009286,1779745868000,-2067.0,0.00023,2]
[423009285,1779745868000,-164.0,0.00023,2]
[423009288,1779745868000,-157.0,0.00023,2]
[423009287,1779745868000,-544.0,0.00023,2]
[423009289,1779745868000,-150.0,0.00023115,2]
[423009291,1779745868000,-238.87197586,0.000232,2]
[423009290,1779745868000,-156.0,0.00023115,2]
[423009295,1779745868000,-928.0,0.00023222,2]
[423009296,1779745868000,-519.0,0.00023222,2]
[423009294,1779745868000,-3547.0,0.00023222,2]
[423009292,1779745868000,-626.0,0.00023222,2]
[423009242,1779745868000,-150.0,0.00022509,2]
[423009293,1779745868000,-1355.0,0.00023222,2]
[423009265,1779745868000,-2080.17592889,0.00022844,2]
[423009266,1779745868000,-200.0,0.00022844,2]
[423009271,1779745868000,-1696.0,0.00023,20]
[423009264,1779745868000,-200.0,0.00022844,2]
[423009241,1779745868000,-150.0,0.00022509,2]
[423009239,1779745868000,-1166.94,0.00022466,2]
[423009234,1779745868000,-3548.7,0.00022353,2]
[423009238,1779745868000,-1732.89,0.00022466,2]
[423009244,1779745868000,-150.0,0.00022509,2]
[423009236,1779745868000,-372.26,0.00022466,2]
[423009237,1779745868000,-1971.49,0.00022466,2]
[423009249,1779745868000,-150.0,0.00022544,2]
[423009268,1779745868000,-1428.38747117,0.00022844,2]
[423009257,1779745868000,-1187.6111272,0.00022685,2]
[423009251,1779745868000,-150.0,0.00022544,2]
[423009254,1779745868000,-4963.57,0.00022562,2]
[423009250,1779745868000,-150.0,0.00022544,2]
[423009255,1779745868000,-1871.76,0.00022562,2]
[423009252,1779745868000,-150.0,0.00022544,2]
[423009272,1779745868000,-859.42363499,0.00023,20]
[423009248,1779745868000,-150.0,0.00022544,2]
[423009273,1779745868000,-2500.0,0.00023,2]
[423009261,1779745868000,-500.0,0.00022843,2]
[423009274,1779745868000,-1000.0,0.00023,23]
[423009262,1779745868000,-623.58710447,0.00022843,2]
[423009263,1779745868000,-599.60298507,0.00022843,2]
[423009256,1779745868000,-163.0,0.00022599,3]
[423009258,1779745868000,-49482.06,0.00022691,2]
[423009253,1779745868000,-292.0,0.00022544,2]
[423009260,1779745868000,-1442.44576139,0.00022842,2]
[423009259,1779745868000,-1476.41,0.000228,7]
[423009333,1779745869000,-358.18716106,0.00024,2]
[423009346,1779745869000,-1257.55,0.00024325,2]
[423009337,1779745869000,-554.4785593,0.00024,2]
[423009344,1779745869000,-1257.56,0.00024323,2]
[423009345,1779745869000,-3548.7,0.00024324,2]
[423009322,1779745869000,-168.47,0.00023963,2]
[423009329,1779745869000,-161.50760692,0.00024,2]
[423009328,1779745869000,-500.0,0.00024,2]
[423009332,1779745869000,-223.62908926,0.00024,2]
[423009331,1779745869000,-1505.84146161,0.00024,2]
[423009336,1779745869000,-2068.31698647,0.00024,2]
[423009334,1779745869000,-1806.49433416,0.00024,2]
[423009335,1779745869000,-174.36241002,0.00024,2]
[423009355,1779745869000,-233.5188934,0.00024488,2]
[423009341,1779745869000,-1257.56,0.00024321,2]
[423009340,1779745869000,-1257.56,0.00024321,2]
[423009343,1779745869000,-1257.56,0.00024323,2]
[423009338,1779745869000,-175.77702594,0.00024,2]
[423009339,1779745869000,-3757.05752455,0.0002421,2]
[423009347,1779745869000,-1257.56,0.00024325,2]
[423009349,1779745869000,-160.0,0.00024329,2]
[423009348,1779745869000,-1257.56,0.00024325,2]
[423009350,1779745869000,-155.41130412,0.00024409,21]
[423009351,1779745869000,-327.0,0.0002445,2]
[423009354,1779745869000,-200.0,0.00024488,2]
[423009356,1779745869000,-1592.87721992,0.00024488,2]
[423009327,1779745869000,-1255.43912529,0.00024,2]
[423009342,1779745869000,-1257.56,0.00024323,2]
[423009330,1779745869000,-468.4032035,0.00024,2]
[423009297,1779745869000,-1271.0,0.00023222,2]
[423009323,1779745869000,-2500.0,0.00024,2]
[423009298,1779745869000,-931.0,0.00023222,2]
[423009299,1779745869000,-418.0,0.00023222,2]
[423009301,1779745869000,-150.0,0.00023268,2]
[423009300,1779745869000,-150.0,0.00023268,2]
[423009308,1779745869000,-2157.14243826,0.00023392,2]
[423009302,1779745869000,-150.0,0.00023268,2]
[423009309,1779745869000,-200.0,0.00023392,2]
[423009303,1779745869000,-290.0,0.00023268,2]
[423009307,1779745869000,-200.0,0.00023392,2]
[423009305,1779745869000,-300.0,0.00023288,2]
[423009304,1779745869000,-150.0,0.00023288,2]
[423009306,1779745869000,-2000.0,0.00023333,7]
[423009326,1779745869000,-3600.0,0.00024,2]
[423009311,1779745869000,-1481.2378076,0.00023392,2]
[423009315,1779745869000,-152.0,0.0002384,3]
[423009310,1779745869000,-217.15233878,0.00023392,2]
[423009313,1779745869000,-7541.78,0.00023591,2]
[423009314,1779745869000,-178.0,0.0002376,2]
[423009316,1779745869000,-170.43895318,0.00023851,2]
[423009317,1779745869000,-200.0,0.0002394,2]
[423009318,1779745869000,-2236.95670847,0.0002394,2]
[423009319,1779745869000,-200.0,0.0002394,2]
[423009320,1779745869000,-225.18697532,0.0002394,2]
[423009321,1779745869000,-1536.04360648,0.0002394,2]
[423009324,1779745869000,-1476.41,0.00024,7]
[423009325,1779745869000,-1038.2668197,0.00024,2]
[423009312,1779745869000,-12400.0,0.00023463,7]
[423009352,1779745869000,-200.0,0.00024488,2]
[423009413,1779745869000,-611.03,0.00025,2]
[423009353,1779745869000,-2319.72410669,0.00024488,2]
[423009390,1779745869000,-4838.33977169,0.00025,3]
[423009388,1779745869000,-574.85793209,0.00024882,2]
[423009386,1779745869000,-437.4,0.00024795,2]
[423009394,1779745869000,-4759.32769321,0.00025,2]
[423009391,1779745869000,-2500.0,0.00025,2]
[423009389,1779745869000,-238.97,0.00024962,2]
[423009395,1779745869000,-1129.82536491,0.00025,2]
[423009397,1779745869000,-1810.36740368,0.00025,2]
[423009396,1779745869000,-210.45140216,0.00025,2]
[423009406,1779745869000,-88320.63893812,0.00025,2]
[423009404,1779745869000,-169.7056057,0.00025,2]
[423009405,1779745869000,-21763.19531632,0.00025,2]
[423009399,1779745869000,-540.0,0.00025,2]
[423009401,1779745869000,-3086.70016649,0.00025,2]
[423009400,1779745869000,-619.48446565,0.00025,2]
[423009402,1779745869000,-7230.30116901,0.00025,2]
[423009403,1779745869000,-2231.81768262,0.00025,2]
[423009407,1779745869000,-611.03,0.00025,2]
[423009409,1779745869000,-611.03,0.00025,2]
[423009416,1779745869000,-611.03,0.00025,2]
[423009408,1779745869000,-611.03,0.00025,2]
[423009411,1779745869000,-611.03,0.00025,2]
[423009414,1779745869000,-611.03,0.00025,2]
[423009410,1779745869000,-611.03,0.00025,2]
[423009415,1779745869000,-611.03,0.00025,2]
[423009412,1779745869000,-611.03,0.00025,2]
[423009357,1779745869000,-1101.82,0.00024512,7]
[423009387,1779745869000,-238.0,0.0002484,2]
[423009384,1779745869000,-152.0,0.00024769,4]
[423009398,1779745869000,-1000.0,0.00025,2]
[423009392,1779745869000,-2975.34,0.00025,60]
[423009393,1779745869000,-1353.40142153,0.00025,4]
[423009370,1779745869000,-545.50482,0.00024658,2]
[423009361,1779745869000,-934.91,0.00024658,2]
[423009369,1779745869000,-545.50482,0.00024658,2]
[423009359,1779745869000,-1000.0,0.00024658,2]
[423009360,1779745869000,-545.50482,0.00024658,2]
[423009362,1779745869000,-545.50482,0.00024658,2]
[423009363,1779745869000,-545.50482,0.00024658,2]
[423009367,1779745869000,-545.50482,0.00024658,2]
[423009366,1779745869000,-545.50482,0.00024658,2]
[423009368,1779745869000,-545.50482,0.00024658,2]
[423009365,1779745869000,-545.50482,0.00024658,2]
[423009364,1779745869000,-545.50482,0.00024658,2]
[423009371,1779745869000,-545.50482,0.00024658,2]
[423009358,1779745869000,-329.6,0.00024658,8]
[423009385,1779745869000,-450.0,0.00024795,2]
[423009373,1779745869000,-545.50482,0.00024658,2]
[423009383,1779745869000,-203.81772309,0.00024694,3]
[423009381,1779745869000,-300.0,0.00024658,2]
[423009376,1779745869000,-545.50482,0.00024658,2]
[423009382,1779745869000,-157.43995011,0.00024658,2]
[423009375,1779745869000,-545.50482,0.00024658,2]
[423009378,1779745869000,-545.50482,0.00024658,2]
[423009379,1779745869000,-545.50482,0.00024658,2]
[423009377,1779745869000,-545.50482,0.00024658,2]
[423009372,1779745869000,-545.50482,0.00024658,2]
[423009374,1779745869000,-545.50482,0.00024658,2]
[423009380,1779745869000,-545.504825,0.00024658,2]
[423009451,1779745870000,-205.06512029,0.00025584,2]
[423009470,1779745870000,-151.36985639,0.00026027,2]
[423009460,1779745870000,-233.06,0.000257,14]
[423009452,1779745870000,-200.0,0.00025584,2]
[423009456,1779745870000,-1020.0,0.000256,10]
[423009448,1779745870000,-162.88,0.00025582,14]
[423009455,1779745870000,-1712.93078311,0.00025584,2]
[423009450,1779745870000,-162.89,0.00025582,14]
[423009453,1779745870000,-2494.55939288,0.00025584,2]
[423009449,1779745870000,-162.88,0.00025582,14]
[423009471,1779745870000,-300.0,0.00026028,2]
[423009446,1779745870000,-646.65982734,0.00025582,2]
[423009454,1779745870000,-251.11897888,0.00025584,2]
[423009459,1779745870000,-152.0,0.00025698,5]
[423009463,1779745870000,-609.64161984,0.0002599,2]
[423009461,1779745870000,-206.74,0.00025727,2]
[423009469,1779745870000,-151.36951119,0.00026027,2]
[423009467,1779745870000,-550.0,0.00026,2]
[423009464,1779745870000,-2500.0,0.00026,2]
[423009466,1779745870000,-219.63664542,0.00026,2]
[423009468,1779745870000,-161.0,0.00026,7]
[423009465,1779745870000,-4588.99445923,0.00026,2]
[423009472,1779745870000,-25500.0,0.000261,2]
[423009476,1779745870000,-162.89,0.0002613,14]
[423009473,1779745870000,-2551.11158405,0.000261,2]
[423009477,1779745870000,-200.0,0.00026132,2]
[423009474,1779745870000,-162.88,0.0002613,14]
[423009479,1779745870000,-260.4103811,0.00026132,2]
[423009462,1779745870000,-197.71073979,0.00025875,2]
[423009447,1779745870000,-621.78829552,0.00025582,2]
[423009419,1779745870000,-162.88,0.00025034,14]
[423009457,1779745870000,-10575.20164776,0.000256,2]
[423009480,1779745870000,-1776.30922209,0.00026132,2]
[423009418,1779745870000,-162.88,0.00025034,14]
[423009417,1779745870000,-200.0,0.00025031,2]
[423009420,1779745870000,-162.89,0.00025034,14]
[423009422,1779745870000,-200.0,0.00025036,2]
[423009423,1779745870000,-2405.55389863,0.00025036,2]
[423009432,1779745870000,-200.0,0.00025163,2]
[423009431,1779745870000,-200.0,0.00025162,2]
[423009421,1779745870000,-200.0,0.00025036,2]
[423009426,1779745870000,-10993.11,0.000251,2]
[423009425,1779745870000,-1651.81367706,0.00025036,2]
[423009430,1779745870000,-200.0,0.00025162,2]
[423009428,1779745870000,-151.36985639,0.00025114,2]
[423009458,1779745870000,-1000.0,0.000256,2]
[423009427,1779745870000,-2765.7,0.000251,2]
[423009433,1779745870000,-200.0,0.00025164,2]
[423009434,1779745870000,-200.0,0.00025165,2]
[423009436,1779745870000,-200.0,0.00025195,2]
[423009438,1779745870000,-157.43995011,0.00025205,2]
[423009435,1779745870000,-200.0,0.00025194,2]
[423009440,1779745870000,-566.9362462,0.00025397,2]
[423009439,1779745870000,-7541.78,0.00025387,7]
[423009437,1779745870000,-1476.41,0.000252,7]
[423009445,1779745870000,-501.86692659,0.00025582,2]
[423009441,1779745870000,-171.8739482,0.00025397,2]
[423009444,1779745870000,-155.26571428,0.00025571,2]
[423009443,1779745870000,-263.24094335,0.00025397,2]
[423009442,1779745870000,-313.58337697,0.00025397,2]
[423009429,1779745870000,-200.0,0.0002516,2]
[423009481,1779745870000,-197.71073979,0.0002618,2]
[423009424,1779745870000,-242.15909246,0.00025036,2]
[423009485,1779745870000,-928.0,0.00026222,2]
[423009514,1779745870000,-2000.0,0.00027,14]
[423009519,1779745870000,-10993.11,0.00027,2]
[423009512,1779745870000,-292.5,0.00026931,2]
[423009517,1779745870000,-500.0,0.00027,2]
[423009520,1779745870000,-2765.7,0.00027,2]
[423009513,1779745870000,-151.36985639,0.00026941,2]
[423009518,1779745870000,-1805.03427152,0.00027,2]
[423009522,1779745870000,-1050.67932645,0.00027,2]
[423009524,1779745870000,-2000.0,0.00027,2]
[423009525,1779745870000,-2581.158949,0.0002701,2]
[423009526,1779745870000,-238.96999999,0.00027093,2]
[423009527,1779745870000,-1630.46,0.000271,2]
[423009523,1779745870000,-530.0,0.00027,2]
[423009528,1779745870000,-10993.11,0.000271,2]
[423009529,1779745870000,-2765.7,0.000271,2]
[423009530,1779745870000,-7541.78,0.00027182,7]
[423009533,1779745870000,-280.03725111,0.00027228,2]
[423009531,1779745870000,-200.0,0.00027228,2]
[423009542,1779745870000,-209.05558465,0.00027397,7]
[423009532,1779745870000,-2781.82699784,0.00027228,2]
[423009535,1779745870000,-4176.03767295,0.0002739,2]
[423009534,1779745870000,-167.12782538,0.000273,30]
[423009536,1779745870000,-8249.90857441,0.0002739,2]
[423009537,1779745870000,-238.97,0.00027397,30]
[423009539,1779745870000,-157.43995011,0.00027397,2]
[423009538,1779745870000,-657.41876067,0.00027397,7]
[423009540,1779745870000,-289.54593509,0.00027397,7]
[423009543,1779745870000,-175.49396224,0.00027397,7]
[423009478,1779745870000,-2586.85809042,0.00026132,2]
[423009515,1779745870000,-2500.0,0.00027,2]
[423009516,1779745870000,-1630.46,0.00027,2]
[423009541,1779745870000,-377.95749747,0.00027397,7]
[423009510,1779745870000,-1020.0,0.000268,20]
[423009521,1779745870000,-250.0,0.00027,2]
[423009482,1779745870000,-626.0,0.00026222,2]
[423009484,1779745870000,-3547.0,0.00026222,2]
[423009475,1779745870000,-162.88,0.0002613,14]
[423009486,1779745870000,-519.0,0.00026222,2]
[423009491,1779745870000,-566.9362462,0.00026397,2]
[423009493,1779745870000,-269.91999244,0.00026397,2]
[423009494,1779745870000,-313.58337697,0.00026397,2]
[423009487,1779745870000,-696.739,0.00026222,2]
[423009488,1779745870000,-931.0,0.00026222,2]
[423009495,1779745870000,-263.24094335,0.00026397,2]
[423009490,1779745870000,-3548.7,0.00026296,2]
[423009492,1779745870000,-171.8739482,0.00026397,2]
[423009489,1779745870000,-418.0,0.00026222,2]
[423009483,1779745870000,-1355.0,0.00026222,2]
[423009502,1779745870000,-152.0,0.00026627,6]
[423009496,1779745870000,-229.94089936,0.00026397,2]
[423009508,1779745870000,-2231.0,0.00026727,2]
[423009498,1779745870000,-1476.41,0.000264,7]
[423009505,1779745870000,-2682.57183977,0.0002668,2]
[423009504,1779745870000,-200.0,0.0002668,2]
[423009507,1779745870000,-1002.2992212,0.0002668,2]
[423009509,1779745870000,-421.89,0.00026729,2]
[423009506,1779745870000,-270.0455652,0.0002668,2]
[423009503,1779745870000,-1009.80399142,0.00026667,7]
[423009499,1779745870000,-27896.17421624,0.000264,2]
[423009501,1779745870000,-2034.52164087,0.000265,5]
[423009511,1779745870000,-157.43995011,0.00026849,2]
[423009497,1779745870000,-325.8981108,0.00026397,2]
[423009500,1779745870000,-155.26,0.00026484,2]
[423009583,1779745871000,-827.455827,0.00027397,2]
[423009584,1779745871000,-827.455827,0.00027397,2]
[423009575,1779745871000,-827.455827,0.00027397,2]
[423009574,1779745871000,-827.455827,0.00027397,2]
[423009578,1779745871000,-827.455827,0.00027397,2]
[423009579,1779745871000,-827.455827,0.00027397,2]
[423009577,1779745871000,-827.455827,0.00027397,2]
[423009580,1779745871000,-827.455827,0.00027397,2]
[423009576,1779745871000,-827.455827,0.00027397,2]
[423009581,1779745871000,-827.455827,0.00027397,2]
[423009573,1779745871000,-827.455827,0.00027397,2]
[423009582,1779745871000,-827.455827,0.00027397,2]
[423009587,1779745871000,-827.455827,0.00027397,2]
[423009597,1779745871000,-1492.525256,0.00027397,2]
[423009586,1779745871000,-827.455827,0.00027397,2]
[423009596,1779745871000,-1492.525256,0.00027397,2]
[423009589,1779745871000,-827.455834,0.00027397,2]
[423009588,1779745871000,-827.455827,0.00027397,2]
[423009592,1779745871000,-151.0,0.00027397,2]
[423009595,1779745871000,-300.0,0.00027397,2]
[423009591,1779745871000,-151.0,0.00027397,2]
[423009594,1779745871000,-218.119815,0.00027397,2]
[423009567,1779745871000,-1020.0,0.00027397,2]
[423009590,1779745871000,-934.91,0.00027397,2]
[423009585,1779745871000,-827.455827,0.00027397,2]
[423009566,1779745871000,-299.04917,0.00027397,2]
[423009555,1779745871000,-151.0,0.00027397,2]
[423009562,1779745871000,-151.0,0.00027397,2]
[423009593,1779745871000,-151.0,0.00027397,2]
[423009547,1779745871000,-428.71283158,0.00027397,2]
[423009546,1779745871000,-329.6,0.00027397,31]
[423009548,1779745871000,-151.0,0.00027397,2]
[423009545,1779745871000,-1003.3,0.00027397,2]
[423009544,1779745871000,-1500.0,0.00027397,2]
[423009550,1779745871000,-151.0,0.00027397,2]
[423009560,1779745871000,-151.0,0.00027397,2]
[423009553,1779745871000,-151.0,0.00027397,2]
[423009558,1779745871000,-151.0,0.00027397,2]
[423009551,1779745871000,-151.0,0.00027397,2]
[423009554,1779745871000,-151.0,0.00027397,2]
[423009549,1779745871000,-151.0,0.00027397,2]
[423009552,1779745871000,-151.0,0.00027397,2]
[423009556,1779745871000,-151.0,0.00027397,2]
[423009559,1779745871000,-151.0,0.00027397,2]
[423009557,1779745871000,-151.0,0.00027397,2]
[423009570,1779745871000,-827.455827,0.00027397,2]
[423009561,1779745871000,-151.0,0.00027397,2]
[423009571,1779745871000,-827.455827,0.00027397,2]
[423009572,1779745871000,-827.455827,0.00027397,2]
[423009565,1779745871000,-151.0,0.00027397,2]
[423009569,1779745871000,-1466.88,0.00027397,2]
[423009563,1779745871000,-151.0,0.00027397,2]
[423009568,1779745871000,-1000.0,0.00027397,20]
[423009564,1779745871000,-151.0,0.00027397,2]
[423009599,1779745871000,-1492.525256,0.00027397,2]
[423009598,1779745871000,-1492.525256,0.00027397,2]
[423009641,1779745871000,-904.138644,0.00027397,2]
[423009630,1779745871000,-151.524391,0.00027397,2]
[423009633,1779745871000,-151.524391,0.00027397,2]
[423009631,1779745871000,-151.524391,0.00027397,2]
[423009629,1779745871000,-151.524391,0.00027397,2]
[423009634,1779745871000,-151.524391,0.00027397,2]
[423009637,1779745871000,-904.138644,0.00027397,2]
[423009636,1779745871000,-904.138644,0.00027397,2]
[423009647,1779745871000,-904.138644,0.00027397,2]
[423009648,1779745871000,-904.138644,0.00027397,2]
[423009638,1779745871000,-904.138644,0.00027397,2]
[423009639,1779745871000,-904.138644,0.00027397,2]
[423009643,1779745871000,-904.138644,0.00027397,2]
[423009640,1779745871000,-904.138644,0.00027397,2]
[423009645,1779745871000,-904.138644,0.00027397,2]
[423009644,1779745871000,-904.138644,0.00027397,2]
[423009646,1779745871000,-904.138644,0.00027397,2]
[423009642,1779745871000,-904.138644,0.00027397,2]
[423009651,1779745871000,-904.138644,0.00027397,2]
[423009653,1779745871000,-904.138644,0.00027397,2]
[423009649,1779745871000,-904.138644,0.00027397,2]
[423009650,1779745871000,-904.138644,0.00027397,2]
[423009655,1779745871000,-151.0,0.00027397,2]
[423009652,1779745871000,-904.138644,0.00027397,2]
[423009654,1779745871000,-904.138644,0.00027397,2]
[423009601,1779745871000,-1492.525256,0.00027397,2]
[423009632,1779745871000,-151.524391,0.00027397,2]
[423009628,1779745871000,-151.524391,0.00027397,2]
[423009635,1779745871000,-151.524395,0.00027397,2]
[423009627,1779745871000,-151.524391,0.00027397,2]
[423009602,1779745871000,-1492.525256,0.00027397,2]
[423009600,1779745871000,-1492.525256,0.00027397,2]
[423009607,1779745871000,-1492.525256,0.00027397,2]
[423009606,1779745871000,-1492.525256,0.00027397,2]
[423009603,1779745871000,-1492.525256,0.00027397,2]
[423009604,1779745871000,-1492.525256,0.00027397,2]
[423009605,1779745871000,-1492.525256,0.00027397,2]
[423009625,1779745871000,-151.524391,0.00027397,2]